fUST/lending_fUST_20241204
["ID","MTS","AMOUNT","RATE_DAILY","PERIOD"]
[344043128,1733244649801,-505.41557751,0.00030136,7]
[344043129,1733244649810,-500.0,0.00030136,7]
[344043130,1733244649820,-500.0,0.00030136,7]
[344043131,1733244649830,-500.0,0.00030136,7]
[344043132,1733244649839,-500.0,0.00030136,7]
[344043133,1733244649850,-509.69505812,0.00030136,7]
[344043134,1733244649860,-500.0,0.00030136,7]
[344043135,1733244649870,-500.0,0.00030136,7]
[344043136,1733244649881,-500.0,0.00030136,7]
[344043137,1733244649890,-500.0,0.00030136,7]
[344043138,1733244649900,-530.35754393,0.00030136,7]
[344043139,1733244649911,-500.0,0.00030136,7]
[344043140,1733244649927,-500.0,0.00030136,7]
[344043141,1733244649936,-371.1781233,0.00030136,7]
[344043142,1733244650032,-128.8218767,0.00030136,7]
[344043143,1733244650042,-500.0,0.00030136,7]
[344043144,1733244650051,-14.04379306,0.00030136,7]
[344043145,1733244650063,-583.16648738,0.00030136,7]
[344043146,1733244650073,-500.0,0.00030136,7]
[344043147,1733244650082,-500.0,0.00030136,7]
[344043148,1733244650092,-36.19181662,0.00030136,7]
[344043150,1733244719852,774.32370934,0.0002743,2]
[344043151,1733244719874,394.94712399,0.0002743,2]
[344043163,1733245164444,164.590994,0.00013973,2]
[344043237,1733245557112,-1109.51882834,0.0002,2]
[344043265,1733245629138,-59.75200499,0.0002,2]
[344043266,1733245629161,-696.91682052,0.0002,2]
[344043267,1733245630125,-472.35401281,0.0002,2]
[344043268,1733245630147,-155.01476596,0.00027573,2]
[344043269,1733245630170,-530.1441644,0.00028284,2]
[344043270,1733245630193,-500.0,0.00028499,2]
[344043271,1733245630223,-155.0007383,0.00028952,2]
[344043272,1733245630246,-321.1719948,0.00029378,30]
[344043273,1733245630269,-213.1484039,0.00029378,30]
[344043274,1733245630295,-373.9491724,0.00029378,30]
[344043275,1733245630317,-233.0,0.00029731,2]
[344043276,1733245630340,-191.15528437,0.00029731,2]
[344043277,1733245638096,-263.31552773,0.00028499,2]
[344043280,1733245648088,-59.44540581,0.00028499,2]
[344043281,1733245648110,-213.1484039,0.00029378,30]
[344043282,1733245648131,-305.3460728,0.00029378,30]
[344043283,1733245648153,-108.84471563,0.00029731,2]
[344043284,1733245648173,-252.84963272,0.00029733,3]
[344043300,1733245812480,164.590994,0.00013973,2]
[344043384,1733245837957,-84.07431395,0.00029732,2]
[344043385,1733245837988,-215.92568605,0.00029732,2]
[344043386,1733245837998,-20612.43796761,0.00029733,3]
[344043387,1733245838008,-1169.27083333,0.00029733,3]
[344043388,1733245838017,-1169.27083333,0.00029733,3]
[344043389,1733245838027,-237.07353018,0.00029936,2]
[344043390,1733245838037,-446.0,0.0003,2]
[344043391,1733245838047,-364.0,0.0003,2]
[344043392,1733245838056,-213.1484039,0.0003,30]
[344043393,1733245838065,-305.3460728,0.0003,30]
[344043394,1733245838076,-213.1484039,0.0003,30]
[344043395,1733245838085,-173.0,0.0003,2]
[344043396,1733245838094,-333.5948436,0.0003,30]
[344043397,1733245838104,-213.1484039,0.0003,30]
[344043398,1733245838113,-6666.0,0.00030036,2]
[344043399,1733245838123,-234.89293587,0.00030036,2]
[344043400,1733245838132,-237.07353012,0.00030067,2]
[344043401,1733245838141,-758.29901069,0.00030126,10]
[344043402,1733245838154,-919.56098931,0.00030126,10]
[344043403,1733245838163,-152.86119046,0.00030126,7]
[344043404,1733245838173,-234.8929358,0.00030127,2]
[344043405,1733245838183,-196.13,0.00030127,120]
[344043406,1733245838192,-150.01,0.00030135,2]
[344043407,1733245838202,-1505.67460841,0.00030135,2]
[344043408,1733245838214,-7699.49773621,0.00030135,2]
[344043409,1733245838224,-500.0,0.00030135,2]
[344043410,1733245838234,-188.93541293,0.00030135,2]
[344043411,1733245838249,-262.59729044,0.00030135,2]
[344043412,1733245838258,-202.45622216,0.00030135,2]
[344043413,1733245838269,-500.0,0.00030136,7]
[344043414,1733245838278,-500.0,0.00030136,7]
[344043415,1733245838288,-500.0,0.00030136,7]
[344043416,1733245838297,-443.37033891,0.00030136,7]
[344043417,1733245838306,-500.0,0.00030136,7]
[344043418,1733245838316,-500.0,0.00030136,7]
[344043419,1733245838325,-523.26345905,0.00030136,7]
[344043420,1733245838335,-509.30800496,0.00030136,7]
[344043421,1733245838344,-500.0,0.00030136,7]
[344043422,1733245838354,-348.76546614,0.00030136,7]
[344043423,1733245838367,-151.23453386,0.00030136,7]
[344043424,1733245838376,-178.39167517,0.00030136,7]
[344043425,1733245838387,-156.03507887,0.00030136,7]
[344043426,1733245838396,-500.0,0.00030136,7]
[344043427,1733245838405,-500.0,0.00030136,7]
[344043428,1733245838414,-500.0,0.00030136,7]
[344043429,1733245838423,-500.0,0.00030136,7]
[344043430,1733245838432,-500.0,0.00030136,7]
[344043431,1733245838441,-500.0,0.00030136,7]
[344043432,1733245838459,-499.38237768,0.00030136,7]
[344043433,1733245838469,-500.0,0.00030136,7]
[344043434,1733245838478,-57.91701488,0.00030136,7]
[344043435,1733245838491,-449.43731489,0.00030136,7]
[344043436,1733245838501,-500.0,0.00030136,7]
[344043437,1733245838510,-370.11052688,0.00030136,7]
[344043449,1733245839900,-129.88947312,0.00030136,7]
[344043450,1733245839909,-500.0,0.00030136,7]
[344043451,1733245839918,-500.0,0.00030136,7]
[344043452,1733245839928,-500.0,0.00030136,7]
[344043453,1733245839937,-500.0,0.00030136,7]
[344043454,1733245839946,-500.0,0.00030136,7]
[344043455,1733245839956,-500.0,0.00030136,7]
[344043456,1733245839966,-500.0,0.00030136,7]
[344043457,1733245839975,-500.0,0.00030136,7]
[344043458,1733245839984,-500.0,0.00030136,7]
[344043459,1733245840073,-500.0,0.00030136,7]
[344043460,1733245840083,-500.0,0.00030136,7]
[344043461,1733245840092,-502.51436,0.00030136,7]
[344043462,1733245840101,-500.0,0.00030136,7]
[344043463,1733245840111,-449.28751611,0.00030136,7]
[344043464,1733245840120,-563.08393039,0.00030136,7]
[344043465,1733245840129,-500.0,0.00030136,7]
[344043466,1733245840138,-500.0,0.00030136,7]
[344043467,1733245840147,-500.0,0.00030136,7]
[344043468,1733245840156,-500.0,0.00030136,7]
[344043469,1733245840166,-500.0,0.00030136,7]
[344043470,1733245840175,-441.92455132,0.00030136,7]
[344043471,1733245840184,-500.0,0.00030136,7]
[344043472,1733245840193,-500.0,0.00030136,7]
[344043473,1733245840205,-500.0,0.00030136,7]
[344043474,1733245840214,-500.0,0.00030136,7]
[344043475,1733245840223,-414.46754536,0.00030136,2]
[344043476,1733245840233,-503.42436298,0.00030136,7]
[344043477,1733245840244,-505.9726946,0.00030136,7]
[344043478,1733245840254,-500.0,0.00030136,7]
[344043479,1733245840264,-508.25491649,0.00030136,7]
[344043480,1733245840274,-500.0,0.00030136,7]
[344043481,1733245840284,-500.0,0.00030136,7]
[344043482,1733245840294,-503.17525394,0.00030136,7]
[344043483,1733245840304,-501.45596376,0.00030136,7]
[344043484,1733245840314,-500.0,0.00030136,7]
[344043485,1733245840324,-505.20669959,0.00030136,7]
[344043486,1733245840334,-240.32287367,0.00030136,7]
[344043487,1733245840343,-500.0,0.00030136,7]
[344043488,1733245840352,-158.21907114,0.00030136,7]
[344043489,1733245840362,-519.73852246,0.00030136,7]
[344043490,1733245840371,-311.16110011,0.00030136,7]
[344043491,1733245840380,-500.0,0.00030136,7]
[344043492,1733245840390,-500.0,0.00030136,7]
[344043493,1733245840399,-502.4140288,0.00030136,7]
[344043494,1733245840410,-500.0,0.00030136,7]
[344043495,1733245840421,-500.0,0.00030136,7]
[344043496,1733245840432,-500.0,0.00030136,7]
[344043497,1733245840443,-500.0,0.00030136,7]
[344043498,1733245840455,-500.0,0.00030136,7]
[344043499,1733245840464,-500.0,0.00030136,7]
[344043500,1733245840473,-500.0,0.00030136,7]
[344043501,1733245840482,-500.0,0.00030136,7]
[344043502,1733245840492,-500.0,0.00030136,7]
[344043503,1733245840502,-500.0,0.00030136,7]
[344043504,1733245840512,-500.0,0.00030136,7]
[344043505,1733245840521,-413.10226633,0.00030136,7]
[344043506,1733245840531,-500.0,0.00030136,7]
[344043507,1733245840540,-500.0,0.00030136,7]
[344043508,1733245840549,-504.87864754,0.00030136,7]
[344043509,1733245840560,-500.0,0.00030136,7]
[344043510,1733245840569,-616.08344865,0.00030136,7]
[344043511,1733245840579,-500.0,0.00030136,7]
[344043512,1733245840588,-505.01950321,0.00030136,7]
[344043513,1733245840597,-500.0,0.00030136,7]
[344043514,1733245840606,-500.0,0.00030136,7]
[344043515,1733245840616,-500.0,0.00030136,7]
[344043516,1733245840625,-500.0,0.00030136,7]
[344043517,1733245840635,-322.99067323,0.00030136,7]
[344043518,1733245840643,-500.0,0.00030136,7]
[344043519,1733245840653,-500.0,0.00030136,7]
[344043520,1733245840662,-500.0,0.00030136,7]
[344043521,1733245840671,-500.0,0.00030136,7]
[344043522,1733245840680,-500.0,0.00030136,7]
[344043523,1733245840689,-500.0,0.00030136,7]
[344043524,1733245840698,-500.0,0.00030136,7]
[344043525,1733245840710,-500.0,0.00030136,7]
[344043526,1733245840732,-500.0,0.00030136,7]
[344043527,1733245840742,-500.0,0.00030136,7]
[344043528,1733245840752,-500.0,0.00030136,7]
[344043529,1733245840762,-500.0,0.00030136,7]
[344043530,1733245840772,-500.0,0.00030136,7]
[344043531,1733245840782,-500.0,0.00030136,7]
[344043532,1733245840792,-500.0,0.00030136,7]
[344043533,1733245840802,-500.0,0.00030136,7]
[344043534,1733245840813,-500.0,0.00030136,7]
[344043535,1733245840824,-500.0,0.00030136,7]
[344043536,1733245840833,-500.0,0.00030136,7]
[344043537,1733245840844,-500.0,0.00030136,7]
[344043538,1733245840854,-500.0,0.00030136,7]
[344043539,1733245840864,-500.0,0.00030136,7]
[344043540,1733245840874,-500.0,0.00030136,7]
[344043541,1733245840883,-500.0,0.00030136,7]
[344043542,1733245840894,-500.52530018,0.00030136,7]
[344043543,1733245840904,-500.0,0.00030136,7]
[344043544,1733245840914,-500.0,0.00030136,7]
[344043545,1733245840924,-500.0,0.00030136,7]
[344043546,1733245840934,-500.0,0.00030136,7]
[344043547,1733245840944,-500.0,0.00030136,7]
[344043548,1733245840956,-500.0,0.00030136,7]
[344043549,1733245840966,-339.990497,0.00030136,7]
[344043550,1733245840988,-160.009503,0.00030136,7]
[344043551,1733245840999,-595.14044525,0.00030136,7]
[344043552,1733245841008,-500.0,0.00030136,7]
[344043553,1733245841018,-500.0,0.00030136,7]
[344043554,1733245841029,-617.06033891,0.00030136,7]
[344043555,1733245841038,-500.0,0.00030136,7]
[344043556,1733245841048,-500.0,0.00030136,7]
[344043557,1733245841058,-500.0,0.00030136,7]
[344043558,1733245841068,-500.0,0.00030136,7]
[344043559,1733245841078,-500.0,0.00030136,7]
[344043560,1733245841088,-500.0,0.00030136,7]
[344043561,1733245841097,-500.0,0.00030136,7]
[344043562,1733245841107,-349.87187777,0.00030136,7]
[344043563,1733245841119,-150.12812223,0.00030136,7]
[344043564,1733245841129,-500.0,0.00030136,7]
[344043565,1733245841138,-500.0,0.00030136,7]
[344043566,1733245841147,-500.0,0.00030136,7]
[344043567,1733245841157,-500.0,0.00030136,7]
[344043568,1733245841167,-500.0,0.00030136,7]
[344043569,1733245841182,-500.0,0.00030136,7]
[344043570,1733245841192,-500.0,0.00030136,7]
[344043571,1733245841205,-500.0,0.00030136,7]
[344043572,1733245841214,-225.37868019,0.00030136,7]
[344043573,1733245841223,-588.7020058,0.00030136,7]
[344043574,1733245841233,-500.0,0.00030136,7]
[344043575,1733245841243,-500.0,0.00030136,7]
[344043576,1733245841252,-500.0,0.00030136,7]
[344043577,1733245841265,-500.0,0.00030136,7]
[344043578,1733245841274,-500.0,0.00030136,7]
[344043579,1733245841284,-253.12,0.00030136,7]
[344043580,1733245841294,-309.64599225,0.00030136,7]
[344043581,1733245841303,-162.67146334,0.00030136,7]
[344043582,1733245841313,-500.0,0.00030136,7]
[344043583,1733245841322,-500.0,0.00030136,7]
[344043584,1733245841334,-500.0,0.00030136,7]
[344043585,1733245841344,-500.0,0.00030136,7]
[344043586,1733245841354,-500.0,0.00030136,7]
[344043587,1733245841363,-500.0,0.00030136,7]
[344043588,1733245841373,-500.0,0.00030136,7]
[344043589,1733245841382,-500.0,0.00030136,7]
[344043590,1733245841392,-308.55,0.00030136,7]
[344043591,1733245841402,-500.0,0.00030136,7]
[344043592,1733245841412,-500.0,0.00030136,7]
[344043593,1733245841422,-500.0,0.00030136,7]
[344043594,1733245841431,-500.0,0.00030136,7]
[344043595,1733245841441,-500.0,0.00030136,7]
[344043596,1733245841451,-500.0,0.00030136,7]
[344043597,1733245841462,-199.91456895,0.00030136,7]
[344043598,1733245841472,-500.0,0.00030136,7]
[344043599,1733245841482,-500.0,0.00030136,7]
[344043600,1733245841491,-500.0,0.00030136,7]
[344043601,1733245841501,-540.16282396,0.00030136,7]
[344043602,1733245841511,-500.0,0.00030136,7]
[344043603,1733245841521,-500.0,0.00030136,7]
[344043604,1733245841531,-500.0,0.00030136,7]
[344043605,1733245841540,-500.0,0.00030136,7]
[344043606,1733245841550,-631.81849566,0.00030136,7]
[344043607,1733245841560,-500.0,0.00030136,7]
[344043608,1733245841569,-193.99292907,0.00030136,7]
[344043609,1733245841579,-500.0,0.00030136,7]
[344043610,1733245841588,-500.0,0.00030136,7]
[344043611,1733245841598,-500.0,0.00030136,7]
[344043612,1733245841607,-500.0,0.00030136,7]
[344043613,1733245841617,-500.0,0.00030136,7]
[344043614,1733245841626,-500.0,0.00030136,7]
[344043615,1733245841635,-500.0,0.00030136,7]
[344043616,1733245841645,-500.0,0.00030136,7]
[344043617,1733245841655,-500.0,0.00030136,7]
[344043618,1733245841664,-500.0,0.00030136,7]
[344043619,1733245841674,-500.0,0.00030136,7]
[344043620,1733245841683,-500.0,0.00030136,7]
[344043621,1733245841770,-500.0,0.00030136,7]
[344043622,1733245841780,-500.0,0.00030136,7]
[344043623,1733245841790,-514.86957941,0.00030136,7]
[344043624,1733245841799,-500.0,0.00030136,7]
[344043625,1733245841808,-500.0,0.00030136,7]
[344043626,1733245841817,-500.0,0.00030136,7]
[344043627,1733245841827,-503.89664308,0.00030136,7]
[344043628,1733245841835,-500.0,0.00030136,7]
[344043629,1733245841845,-500.0,0.00030136,7]
[344043630,1733245841855,-500.0,0.00030136,7]
[344043631,1733245841865,-500.0,0.00030136,7]
[344043632,1733245841876,-500.0,0.00030136,7]
[344043633,1733245841887,-500.0,0.00030136,7]
[344043634,1733245841897,-500.0,0.00030136,7]
[344043635,1733245841909,-500.0,0.00030136,7]
[344043636,1733245841918,-500.0,0.00030136,7]
[344043637,1733245841928,-500.0,0.00030136,7]
[344043638,1733245841938,-500.0,0.00030136,7]
[344043639,1733245841949,-500.0,0.00030136,7]
[344043640,1733245841963,-500.0,0.00030136,7]
[344043641,1733245841972,-500.0,0.00030136,7]
[344043642,1733245841981,-581.97970676,0.00030136,7]
[344043643,1733245841991,-500.0,0.00030136,7]
[344043644,1733245842001,-500.0,0.00030136,7]
[344043645,1733245842010,-241.89558432,0.00030136,7]
[344043646,1733245842019,-506.85265362,0.00030136,7]
[344043647,1733245842029,-500.0,0.00030136,7]
[344043648,1733245842039,-500.0,0.00030136,7]
[344043649,1733245842048,-500.0,0.00030136,7]
[344043650,1733245842057,-500.0,0.00030136,7]
[344043651,1733245842067,-201.79866888,0.00030136,7]
[344043652,1733245842076,-500.0,0.00030136,7]
[344043653,1733245842085,-500.0,0.00030136,7]
[344043654,1733245842094,-500.0,0.00030136,7]
[344043655,1733245842104,-500.0,0.00030136,7]
[344043656,1733245842113,-500.0,0.00030136,7]
[344043657,1733245842124,-500.0,0.00030136,7]
[344043658,1733245842133,-500.0,0.00030136,7]
[344043659,1733245842143,-500.0,0.00030136,7]
[344043660,1733245842152,-523.62743406,0.00030136,7]
[344043661,1733245842162,-500.0,0.00030136,7]
[344043662,1733245842171,-500.0,0.00030136,7]
[344043663,1733245842180,-500.0,0.00030136,7]
[344043664,1733245842190,-500.0,0.00030136,7]
[344043665,1733245842199,-500.0,0.00030136,7]
[344043666,1733245842212,-500.0,0.00030136,7]
[344043667,1733245842221,-500.0,0.00030136,7]
[344043668,1733245842230,-289.22,0.00030136,7]
[344043669,1733245842239,-509.06236731,0.00030136,7]
[344043670,1733245842249,-500.0,0.00030136,7]
[344043671,1733245842258,-500.0,0.00030136,7]
[344043672,1733245842268,-500.0,0.00030136,7]
[344043673,1733245842277,-514.0311825,0.00030136,7]
[344043674,1733245842287,-515.94844468,0.00030136,7]
[344043675,1733245842296,-640.80643025,0.00030136,7]
[344043676,1733245842306,-501.76815679,0.00030136,7]
[344043677,1733245842315,-500.0,0.00030136,7]
[344043678,1733245842325,-500.0,0.00030136,7]
[344043679,1733245842334,-500.0,0.00030136,7]
[344043680,1733245842344,-522.40448317,0.00030136,7]
[344043681,1733245842353,-500.0,0.00030136,7]
[344043682,1733245842362,-500.0,0.00030136,7]
[344043683,1733245842372,-500.0,0.00030136,7]
[344043684,1733245842381,-500.0,0.00030136,7]
[344043685,1733245842391,-500.0,0.00030136,7]
[344043686,1733245842400,-520.69028254,0.00030136,7]
[344043687,1733245842409,-500.0,0.00030136,7]
[344043688,1733245842418,-500.0,0.00030136,7]
[344043689,1733245842428,-500.0,0.00030136,7]
[344043690,1733245842437,-500.0,0.00030136,7]
[344043691,1733245842447,-500.0,0.00030136,7]
[344043692,1733245842458,-500.0,0.00030136,7]
[344043693,1733245842467,-229.4204788,0.00030136,7]
[344043694,1733245842477,-500.0,0.00030136,7]
[344043696,1733245842487,-500.0,0.00030136,7]
[344043698,1733245842496,-610.90079217,0.00030136,7]
[344043700,1733245842506,-505.0682684,0.00030136,7]
[344043703,1733245842516,-500.0,0.00030136,7]
[344043706,1733245842525,-537.51320697,0.00030136,7]
[344043709,1733245842534,-352.4944198,0.00030136,7]
[344043712,1733245842544,-500.0,0.00030136,7]
[344043714,1733245842553,-500.0,0.00030136,7]
[344043716,1733245842562,-521.30906388,0.00030136,7]
[344043718,1733245842571,-500.0,0.00030136,7]
[344043720,1733245842581,-257.51654877,0.00030136,7]
[344043722,1733245842591,-870.0226772,0.00030136,5]
[344043724,1733245842601,-500.0,0.00030136,7]
[344043726,1733245842611,-500.0,0.00030136,7]
[344043728,1733245842621,-500.0,0.00030136,7]
[344043731,1733245842632,-500.0,0.00030136,7]
[344043734,1733245842642,-500.0,0.00030136,7]
[344043737,1733245842652,-500.0,0.00030136,7]
[344043740,1733245842663,-500.0,0.00030136,7]
[344043743,1733245842674,-500.0,0.00030136,7]
[344043746,1733245842683,-500.0,0.00030136,7]
[344043749,1733245842693,-500.0,0.00030136,7]
[344043751,1733245842707,-500.0,0.00030136,7]
[344043753,1733245842719,-500.0,0.00030136,7]
[344043755,1733245842728,-500.0,0.00030136,7]
[344043758,1733245842738,-500.0,0.00030136,7]
[344043759,1733245842747,-500.0,0.00030136,7]
[344043761,1733245842758,-500.0,0.00030136,7]
[344043762,1733245842767,-500.0,0.00030136,7]
[344043764,1733245842776,-448.42071454,0.00030136,7]
[344043766,1733245842785,-503.06716596,0.00030136,7]
[344043767,1733245842797,-228.73451143,0.00030136,7]
[344043769,1733245842806,-500.0,0.00030136,7]
[344043771,1733245842815,-500.0,0.00030136,7]
[344043773,1733245842824,-500.0,0.00030136,7]
[344043775,1733245842834,-500.0,0.00030136,7]
[344043776,1733245842844,-500.0,0.00030136,7]
[344043778,1733245842853,-500.0,0.00030136,7]
[344043779,1733245842863,-500.0,0.00030136,7]
[344043781,1733245842872,-500.0,0.00030136,7]
[344043782,1733245842882,-621.08,0.00030136,7]
[344043783,1733245842892,-500.0,0.00030136,7]
[344043785,1733245842902,-500.0,0.00030136,7]
[344043787,1733245842911,-500.0,0.00030136,7]
[344043788,1733245842922,-500.0,0.00030136,7]
[344043789,1733245842931,-500.0,0.00030136,7]
[344043791,1733245842941,-500.0,0.00030136,7]
[344043792,1733245842951,-500.0,0.00030136,7]
[344043793,1733245842962,-415.80722473,0.00030136,7]
[344043794,1733245842972,-500.0,0.00030136,7]
[344043795,1733245842982,-500.0,0.00030136,7]
[344043796,1733245842992,-1132.36,0.00030136,7]
[344043797,1733245843002,-1132.36,0.00030136,7]
[344043798,1733245843012,-1132.36,0.00030136,7]
[344043799,1733245843022,-1132.36,0.00030136,7]
[344043800,1733245843031,-1132.36,0.00030136,7]
[344043801,1733245843040,-1132.36,0.00030136,7]
[344043802,1733245843050,-1132.36,0.00030136,7]
[344043803,1733245843059,-1132.36,0.00030136,7]
[344043804,1733245843069,-1132.36,0.00030136,7]
[344043805,1733245843078,-1132.36,0.00030136,7]
[344043806,1733245843087,-1132.36,0.00030136,7]
[344043807,1733245843096,-1132.36,0.00030136,7]
[344043808,1733245843106,-1132.36,0.00030136,7]
[344043809,1733245843116,-1132.36,0.00030136,7]
[344043810,1733245843126,-1132.36,0.00030136,7]
[344043811,1733245843135,-1132.36,0.00030136,7]
[344043812,1733245843145,-500.0,0.00030136,7]
[344043813,1733245843155,-1132.36,0.00030136,7]
[344043814,1733245843165,-500.0,0.00030136,7]
[344043815,1733245843174,-1132.36,0.00030136,7]
[344043816,1733245843184,-500.0,0.00030136,7]
[344043817,1733245843193,-1132.36,0.00030136,7]
[344043818,1733245843204,-500.0,0.00030136,7]
[344043819,1733245843214,-1132.36,0.00030136,7]
[344043820,1733245843224,-1132.36,0.00030136,7]
[344043821,1733245843234,-1132.36,0.00030136,7]
[344043822,1733245843305,-1132.36,0.00030136,7]
[344043823,1733245843316,-1132.51677887,0.00030136,7]
[344043824,1733245843326,-1169.27083333,0.00030136,7]
[344043825,1733245843335,-1169.27083333,0.00030136,7]
[344043826,1733245843345,-500.0,0.00030136,7]
[344043827,1733245843354,-502.1486162,0.00030136,7]
[344043828,1733245843364,-1169.27083333,0.00030136,7]
[344043829,1733245843374,-500.0,0.00030136,7]
[344043830,1733245843383,-500.0,0.00030136,7]
[344043831,1733245843392,-500.0,0.00030136,7]
[344043832,1733245843402,-782.64,0.00030136,7]
[344043833,1733245843411,-500.0,0.00030136,7]
[344043834,1733245843421,-782.64,0.00030136,7]
[344043835,1733245843431,-500.0,0.00030136,7]
[344043836,1733245843441,-500.0,0.00030136,7]
[344043837,1733245843450,-782.64,0.00030136,7]
[344043838,1733245843461,-500.0,0.00030136,7]
[344043839,1733245843471,-500.0,0.00030136,7]
[344043840,1733245843480,-500.0,0.00030136,7]
[344043841,1733245843489,-500.0,0.00030136,7]
[344043842,1733245843499,-782.64,0.00030136,7]
[344043843,1733245843509,-500.0,0.00030136,7]
[344043844,1733245843518,-500.0,0.00030136,7]
[344043845,1733245843527,-782.64,0.00030136,7]
[344043846,1733245843537,-500.0,0.00030136,7]
[344043847,1733245843547,-500.0,0.00030136,7]
[344043848,1733245843556,-782.64,0.00030136,7]
[344043849,1733245843566,-500.0,0.00030136,7]
[344043850,1733245843576,-500.0,0.00030136,7]
[344043851,1733245843585,-782.64,0.00030136,7]
[344043852,1733245843595,-500.0,0.00030136,7]
[344043853,1733245843604,-500.0,0.00030136,7]
[344043854,1733245843614,-782.64,0.00030136,7]
[344043855,1733245843623,-500.0,0.00030136,7]
[344043856,1733245843633,-500.0,0.00030136,7]
[344043857,1733245843642,-782.64,0.00030136,7]
[344043858,1733245843651,-500.0,0.00030136,7]
[344043859,1733245843660,-500.0,0.00030136,7]
[344043860,1733245843670,-782.64,0.00030136,7]
[344043861,1733245843679,-500.0,0.00030136,7]
[344043862,1733245843688,-500.0,0.00030136,7]
[344043863,1733245843698,-782.64,0.00030136,7]
[344043864,1733245843712,-213.6837178,0.00030136,7]
[344043865,1733245843807,-286.3162822,0.00030136,7]
[344043866,1733245843816,-206.70577169,0.00030136,7]
[344043867,1733245843924,-293.29422831,0.00030136,7]
[344043868,1733245843934,-500.0,0.00030136,7]
[344043869,1733245843943,-500.0,0.00030136,7]
[344043870,1733245843953,-554.48700505,0.00030136,7]
[344043871,1733245843965,-228.15299495,0.00030136,7]
[344043872,1733245843975,-500.0,0.00030136,7]
[344043873,1733245843984,-500.0,0.00030136,7]
[344043874,1733245843994,-782.64,0.00030136,7]
[344043875,1733245844003,-542.91534274,0.00030136,7]
[344043876,1733245844013,-500.0,0.00030136,7]
[344043877,1733245844023,-500.0,0.00030136,7]
[344043878,1733245844032,-500.0,0.00030136,7]
[344043879,1733245844042,-782.64,0.00030136,7]
[344043880,1733245844051,-500.0,0.00030136,7]
[344043881,1733245844061,-500.0,0.00030136,7]
[344043882,1733245844070,-782.64,0.00030136,7]
[344043883,1733245844079,-500.0,0.00030136,7]
[344043884,1733245844088,-500.0,0.00030136,7]
[344043885,1733245844097,-782.64,0.00030136,7]
[344043886,1733245844107,-500.0,0.00030136,7]
[344043887,1733245844117,-782.64,0.00030136,7]
[344043888,1733245844126,-222.0656815,0.00030136,7]
[344043889,1733245844135,-782.64,0.00030136,7]
[344043890,1733245844145,-782.64,0.00030136,7]
[344043891,1733245844154,-782.64,0.00030136,7]
[344043892,1733245844163,-782.64,0.00030136,7]
[344043893,1733245844172,-782.64,0.00030136,7]
[344043894,1733245844181,-782.64,0.00030136,7]
[344043895,1733245844190,-285.32601256,0.00030136,7]
[344043896,1733245844207,-497.47016093,0.00030136,7]
[344043897,1733245844216,-371.46304803,0.00030136,7]
[344043898,1733245844225,-500.0,0.00030136,7]
[344043899,1733245844234,-500.0,0.00030136,7]
[344043900,1733245844243,-500.0,0.00030136,7]